[Event "Hungarian Youth-ch U16 2022"]
[Site "Eger"]
[Date "2022.07.26"]
[Round "4.3"]
[White "Szikszai, Bertalan"]
[Black "Tran, David"]
[Result "0-1"]
[ECO "C00"]
[WhiteElo "2153"]
[BlackElo "2090"]
[Annotator "TA"]
[PlyCount "108"]
[EventDate "2022.07.21"]
[EventType "tourn"]
[EventCountry "HUN"]
[SourceTitle "playchess.com"]
[Source "ChessBase"]
[SourceQuality "1"]
[TimeControl "40/5400+30:1800+30"]

{[%evp 16,108,-7,-31,-11,-12,13,7,10,25,19,24,24,27,39,-8,28,0,0,-16,7,-31,-17,-33,-37,-42,-27,-37,-25,-70,-4,-4,-6,-7,0,-132,-138,-142,-152,-141,-123,-121,0,0,47,45,45,-276,-272,-404,-398,-469,-462,-465,-409,-407,-344,-386,-392,-461,-454,-454,-451,-448,-448,-402,-397,-975,-957,-955,-916,-916,-903,-1105,-981,-1525,-1413,-1886,-1871,-1437,-1400,-1620,-1604,-1894,-1879,-1654,-1551,-12831,-12829,-1850,-1672,-29982,-29983,-29987,-12847]} 1. e4 {[%emt 0:00:38]} e6 {[%emt 0:00:50]} 2. Qe2 {[%emt 0:03:49]} c5 {[%emt 0:03:16]} 3. Nf3 {[%emt 0:00:23]} Nc6 {[%emt 0:01:11]} 4. g3 {[%emt 0:00:48]} d6 {[%emt 0:02:54]} 5. Bg2 {[%emt 0:01:22]} g6 {[%emt 0:01:24]} 6. O-O {[%emt 0:01:20]} Bg7 {[%emt 0:00:10]} 7. d3 {[%emt 0:02:00]} Nge7 {[%emt 0:02:03]} 8. c3 {[%emt 0:06:13]} O-O {[%emt 0:02:56]} 9. Nbd2 {[%emt 0:06:11]} Rb8 {[%emt 0:01:50] C00: French: Unusual White 2nd moves.} 10. Rd1 {[%emt 0:08:47]} b5 {[%emt 0:04:15]} 11. d4 {[%emt 0:09:07]} cxd4 {[%emt 0:02:24] The position is equal.} 12. cxd4 {[%emt 0:00:10]} Nxd4 {[%emt 0:00:15]} 13. Nxd4 {[%emt 0:00:08]} Bxd4 {[%emt 0:00:01] [#]} 14. Nb3 $146 {[%emt 0:01:42]} ({Predecessor:} 14. Nf3 Bg7 15. Bf4 Rb6 16. Rac1 Ba6 17. Qd2 Nc8 18. Rc2 b4 19. e5 d5 20. Nd4 {½-½ (72) Klein,D (2509)-Peng,Z (2381) Haarlem 2015}) 14... Bg7 {[%emt 0:01:34]} 15. Be3 {[%emt 0:06:22]} (15. Bg5 $14 {is superior.}) 15... Rb7 {[%emt 0:11:24][%cal Bb8b7,Bb7c7,Bc7c6][%mdl 32]} 16. Rd2 {[%emt 0:03:49][%mdl 1024] White has compensation.} a6 {[%emt 0:03:04]} 17. Nc5 {[%emt 0:18:05]} Rc7 {[%emt 0:00:56]} 18. Rad1 {[%emt 0:02:35]} (18. a4 $5 {[%cal Ra4b5]}) 18... Rc6 {[%emt 0:01:18]} 19. Nb3 {[%emt 0:10:17][%cal Oe3c5]} Qc7 $1 {[%emt 0:05:24]} 20. Nd4 {[%emt 0:01:55]} Rc4 {[%emt 0:01:01]} 21. b3 {[%emt 0:01:24]} Rc3 {[%emt 0:01:10]} 22. Nf3 {[%emt 0:00:57]} Rd8 {[%emt 0:07:18]} (22... Bb7 $15 23. Bg5 Nc8) 23. Bf4 $1 $11 {[%emt 0:00:20]} Rc6 {[%emt 0:03:41]} 24. Nd4 {[%emt 0:01:00]} Rc5 {[%emt 0:09:23] aiming for ...e5.} 25. Nxe6 {[%emt 0:11:11]} fxe6 $17 {[%emt 0:01:12]} (25... Bxe6 26. Rxd6 Rxd6 27. Bxd6 $15) 26. Bxd6 {[%emt 0:02:13] [#]} Rxd6 {[%emt 0:00:20]} 27. Rxd6 {[%emt 0:00:02] [#]} Nd5 $1 {[%emt 0:12:37][%mdl 512]} 28. e5 {[%emt 0:00:46][%cal Rg2d5]} Nc3 {[%emt 0:02:28]} (28... Rc2 $17 29. Rd8+ Bf8) 29. Rd8+ $11 {[%emt 0:00:33]} Bf8 {[%emt 0:01:18]} (29... Kf7 $1 $11 30. Qe3 (30. Qf3+ $2 Ke7 $17) 30... Qxe5 31. Qxe5 Bxe5) 30. Qf3 $14 {[%emt 0:00:29][%csl Gd8][%cal Rf3f8]} Qe7 {[%emt 0:02:19]} 31. R1d2 {[%emt 0:00:36][%mdl 8192] Now White is beyond hope.} (31. R1d6 $14 {is the one way to stay ahead.}) 31... Nd5 $19 {[%emt 0:00:34]} 32. Rd6 {[%emt 0:00:41]} (32. Rxc8 $142 Rxc8 33. Bh3) 32... Qc7 {[%emt 0:00:58]} 33. R6xd5 {[%emt 0:00:30]} exd5 {[%emt 0:00:46]} 34. Rxd5 {[%emt 0:00:35]} Rc1+ {[%emt 0:01:06]} 35. Rd1 {[%emt 0:00:27]} Qc2 {[%emt 0:00:50]} ({Don't blunder} 35... Rxd1+ $2 36. Qxd1 Qxe5 37. Bf3 $19) 36. Qd5+ {[%emt 0:00:30]} Kg7 {[%emt 0:02:30]} 37. Bf3 {[%emt 0:00:08]} Bc5 {[%emt 0:01:43]} 38. Rxc1 {[%emt 0:00:50]} Qxc1+ {[%emt 0:00:06]} 39. Qd1 {[%emt 0:00:35]} Qxd1+ 40. Bxd1 {[%emt 0:00:00]} Bh3 {[%emt 0:00:00]} ({But not} 40... Bd4 $2 41. Kg2 $19) 41. a4 $2 {[%emt 0:10:57]} (41. Be2) 41... bxa4 {[%emt 0:02:27]} 42. bxa4 {[%emt 0:00:08]} a5 {[%emt 0:00:16]} 43. Bb3 {[%emt 0:05:53]} Bd4 {[%emt 0:00:33]} 44. e6 {[%emt 0:06:11]} Kf6 {[%emt 0:00:39]} 45. e7 {[%emt 0:00:34]} Kxe7 {[%emt 0:00:05] ...h6 is the strong threat.} 46. Bg8 {[%emt 0:00:07]} h6 {[%emt 0:00:06]} 47. Bc4 {[%emt 0:01:40]} Kd6 {[%emt 0:00:09]} 48. Bf7 {[%emt 0:00:12]} g5 {[%emt 0:00:06]} 49. Bb3 {[%emt 0:02:20]} Kc5 {[%emt 0:00:07]} 50. Bd1 {[%emt 0:00:04]} Kb4 {[%emt 0:00:07]} 51. g4 {[%emt 0:00:09]} Kc3 {[%emt 0:00:06] ( -> ...Kd2)} 52. Be2 {[%emt 0:01:24]} Kd2 {[%emt 0:00:13]} 53. Bf3 {[%emt 0:01:09]} Ke1 {[%emt 0:00:14]} 54. Kh1 {[%emt 0:03:06]} Kxf2 {[%emt 0:00:29] Weighted Error Value: White=0.98/Black=0.18 (very precise)} 0-1

[Event "Hungarian Youth-ch U16 2022"]
[Site "Eger"]
[Date "2022.07.26"]
[Round "4.4"]
[White "Fule, Simon"]
[Black "Muranyi, Peter"]
[Result "1-0"]
[ECO "B03"]
[WhiteElo "2271"]
[BlackElo "2018"]
[Annotator "TA"]
[PlyCount "149"]
[EventDate "2022.07.21"]
[EventType "tourn"]
[EventCountry "HUN"]
[SourceTitle "playchess.com"]
[Source "ChessBase"]
[SourceQuality "1"]
[TimeControl "40/5400+30:1800+30"]

{[%evp 9,149,45,37,45,44,41,37,39,39,17,12,0,10,0,74,50,50,51,58,0,8,14,8,-20,-23,-18,-22,-17,-27,-20,-27,-36,-26,-14,-5,-14,-10,-10,-8,0,0,0,0,0,0,0,0,0,26,26,58,0,0,0,0,0,0,0,0,0,0,0,0,0,122,79,83,83,81,55,71,45,45,45,48,0,0,0,31,0,0,0,0,0,0,42,46,0,0,0,0,0,0,0,0,0,449,412,356,283,12822,12821,12820,12820,12819,12818,12804,0,0,0,12818,12817,12816,12189,12822,12822,12829,12822,12818,12817,12805,6543,12833,5319,12831,12835,12841,12842,12842,12843,12843,12843,12845,436,12843,12843,12848,12844,12846,12846,12847,12847]} 1. e4 {[%emt 0:00:33][%cal Be2e4,Be4e5][%mdl 32]} Nf6 {[%emt 0:00:49]} 2. e5 {[%emt 0:00:06]} Nd5 {[%emt 0:00:44]} 3. d4 {[%emt 0:00:07]} Nb6 {[%emt 0:00:06]} 4. f4 {[%emt 0:00:20]} d6 {[%emt 0:00:27]} 5. Nf3 {[%emt 0:00:58]} dxe5 {[%emt 0:06:16]} 6. fxe5 {[%emt 0:04:29] B03: Alekhine's Defence: Four Pawns Attack.} Bg4 {[%emt 0:04:59]} 7. Be3 {[%emt 0:01:00]} e6 {[%emt 0:06:41] [#]} 8. Be2 $146 {[%emt 0:01:12] White is slightly better.} ({Predecessor:} 8. Nbd2 Be7 9. c4 c5 10. Ne4 cxd4 11. Qxd4 Qxd4 12. Nxd4 O-O 13. Nb5 N8d7 14. Bd4 {½-½ (36) Nurmukhanov,T (2262)-Shevchenko,I (2083) Astrakhan 2013}) 8... Be7 {[%emt 0:01:57]} 9. O-O {[%emt 0:00:55]} O-O {[%emt 0:00:21][%cal Oc7c5]} 10. Nbd2 {[%emt 0:19:59]} Nd5 {[%emt 0:15:55]} 11. Bf2 {[%emt 0:00:22]} Nc6 {[%emt 0:03:47]} (11... c5 $11) 12. c3 {[%emt 0:35:49]} Nf4 {[%emt 0:26:22]} 13. Bb5 {[%emt 0:07:49]} Nb8 {[%emt 0:07:10]} 14. Bg3 {[%emt 0:09:24]} (14. Re1 $14) 14... Nd5 $11 {[%emt 0:01:56]} 15. Qe2 {[%emt 0:02:27] Against Ne3} c5 {[%emt 0:03:53]} 16. Bf2 {[%emt 0:08:34]} a6 {[%emt 0:02:14]} 17. Ba4 {[%emt 0:00:23][%cal Bb5a4,Ba4c2,Bc2e4][%mdl 32]} cxd4 {[%emt 0:04:31]} 18. Bxd4 {[%emt 0:00:25]} b5 {[%emt 0:00:59]} 19. Bc2 {[%emt 0:00:17]} Nc6 {[%emt 0:00:23]} 20. Nb3 {[%emt 0:01:56]} Nxd4 {[%emt 0:04:17]} 21. Nbxd4 {[%emt 0:00:22]} Bc5 {[%emt 0:00:24]} 22. Rad1 {[%emt 0:01:16]} Qe7 {[%emt 0:01:28]} 23. Kh1 {[%emt 0:00:27][%cal Oc2h7] Bxh7+! is the strong threat.} Bh5 {[%emt 0:01:17]} 24. Be4 {[%emt 0:01:01]} Bxd4 {[%emt 0:01:46]} 25. Rxd4 {[%emt 0:00:36]} Rad8 {[%emt 0:00:40]} 26. Rfd1 {[%emt 0:01:13]} Nf4 {[%emt 0:01:13]} 27. Bxh7+ {[%emt 0:00:53]} Kxh7 {[%emt 0:00:36]} 28. Rxf4 {[%emt 0:00:02]} Rxd1+ {[%emt 0:00:43]} 29. Qxd1 {[%emt 0:00:00]} Rd8 {[%emt 0:01:18]} 30. Rd4 {[%emt 0:00:45]} ({White should play} 30. Qb1+ $14 Kg8 31. Rh4) 30... Rxd4 {[%emt 0:00:48]} 31. Qxd4 {[%emt 0:00:07] Hoping for Qd6.} Bxf3 {[%emt 0:00:37]} 32. Qd3+ {[%emt 0:00:46]} Kg8 {[%emt 0:00:39]} 33. Qxf3 {[%emt 0:00:28][%mdl 4096] Endgame KQ-KQ} Qg5 {[%emt 0:00:09]} 34. Qa8+ {[%emt 0:00:31]} Kh7 {[%emt 0:00:14][%cal Rg5c1]} 35. Qe4+ {[%emt 0:00:05]} g6 {[%emt 0:01:21] ( -> ...Qc1+)} 36. Qe1 {[%emt 0:00:51] Against Qc1} f6 {[%emt 0:00:28]} (36... Qf5 $11 {keeps the balance.}) 37. exf6 {[%emt 0:00:21]} Qxf6 {[%emt 0:00:05]} 38. h3 {[%emt 0:01:10]} e5 {[%emt 0:00:26]} 39. Qe3 {[%emt 0:01:13]} Qe6 {[%emt 0:01:01]} 40. b3 {[%emt 0:00:00]} e4 {[%emt 0:00:00]} 41. Kg1 {[%emt 0:04:21]} a5 {[%emt 0:10:55]} 42. Qa7+ {[%emt 0:06:04]} (42. h4 $1 $14) 42... Kh6 {[%emt 0:00:19]} 43. Qe3+ {[%emt 0:01:26]} Kh7 $1 {[%emt 0:00:15]} 44. Kf1 {[%emt 0:16:45]} a4 {[%emt 0:15:43]} 45. bxa4 {[%emt 0:00:17]} Qxa2 {[%emt 0:00:06]} 46. axb5 {[%emt 0:00:12]} Qb1+ {[%emt 0:00:05]} 47. Kf2 {[%emt 0:00:36] aiming for b6.} Qxb5 {[%emt 0:00:11]} 48. g4 {[%emt 0:03:12]} ({Don't play} 48. Qxe4 Qb2+ 49. Qe2 Qxc3 $16) (48. Qa7+ $14 {feels stronger.} Kh6 49. Qe3+ Kh7 50. Qa7+ (50. Qxe4 Qb2+ 51. Qe2 Qxc3 $16) 50... Kg8 51. Qa8+ Kg7 52. Qxe4) 48... Qe5 {[%emt 0:00:45]} 49. c4 {[%emt 0:01:19]} Qb2+ {[%emt 0:02:17]} 50. Kg3 {[%emt 0:00:11]} Qe5+ {[%emt 0:00:19]} 51. Kg2 {[%emt 0:01:15]} Qb2+ {[%emt 0:00:15]} 52. Qf2 {[%emt 0:00:26]} Qc3 {[%emt 0:01:21][%mdl 8192]} (52... Qe5 $11 {and Black is okay.}) 53. Qf7+ {[%emt 0:00:09]} Kh6 {[%emt 0:00:22]} 54. Qf4+ {[%emt 0:00:13]} g5 $2 {[%emt 0:00:34]} (54... Kh7 55. Qxe4 Qd2+ 56. Kg3 Qc3+ 57. Kf4 Qf6+ 58. Ke3 Qc3+ 59. Qd3 Qe5+ 60. Kf3 Qf6+ 61. Ke2 Qe5+ 62. Qe3 Qb2+ 63. Kf3 Qb7+ 64. Qe4 Qf7+ 65. Ke3 Qf1 66. Qb7+ Kh6) 55. Qf8+ $18 {[%emt 0:01:22]} ({Less strong is} 55. Qxe4 Qb2+ 56. Kg1 Qc1+ 57. Kg2 Qb2+ 58. Kg1 Qc1+ 59. Kh2 Qb2+ 60. Kg3 Qb3+ 61. Kh2 Qb2+ 62. Kg3 Qc3+ 63. Kf2 Qb2+ 64. Kg3 $18) 55... Kg6 {[%emt 0:00:52]} 56. Qe8+ {[%emt 0:00:24]} Kg7 {[%emt 0:01:19]} 57. Qe7+ {[%emt 0:00:08]} Kh6 {[%emt 0:00:19]} 58. Qxe4 $2 {[%emt 0:00:27]} (58. Qe6+ $18 Kg7 59. Qd7+ Kh8 60. Qe8+ Kg7 61. Qxe4) 58... Qd2+ $11 {[%emt 0:00:20]} 59. Kg1 {[%emt 0:00:54] Black must now prevent Qe6+.} Qd1+ $2 {[%emt 0:00:31][%mdl 8192] [#] Black is now going downhill.} (59... Qc1+ $11 60. Kf2 Qb2+ 61. Kg1 Qc1+ 62. Kg2 Qd2+ 63. Kg3 Qc3+ 64. Kg2 Qd2+) 60. Kf2 $1 $18 {[%emt 0:00:06] White is clearly winning.} Qd2+ {[%emt 0:00:17] [#]} 61. Qe2 $1 {[%emt 0:00:42]} Qf4+ {[%emt 0:01:41]} 62. Kg2 {[%emt 0:00:15]} Qc1 {[%emt 0:01:17]} 63. Qd3 {[%emt 0:00:36]} Qb2+ {[%emt 0:00:46]} 64. Kf3 {[%emt 0:00:23]} Qe5 {[%emt 0:00:38]} 65. Qe3 {[%emt 0:00:50]} Qc7 {[%emt 0:00:56]} 66. c5 {[%emt 0:00:37]} (66. Qe6+ $142 Kg7 67. Ke4 Qf4+ 68. Kd5 Qf3+ 69. Kd6 Qxh3 70. Qe5+ Kf7 71. Qf5+ Kg8 72. Qxg5+ Kf8 73. Qf5+ Kg7 74. Kd7) 66... Qc6+ {[%emt 0:00:42]} 67. Kf2 {[%emt 0:00:38]} Qd5 {[%emt 0:00:59]} 68. h4 {[%emt 0:00:39]} Qf7+ {[%emt 0:00:48]} 69. Kg3 {[%emt 0:00:22]} Qc7+ {[%emt 0:00:29]} 70. Kh3 {[%emt 0:00:06]} Qc6 {[%emt 0:00:31]} 71. Qxg5+ {[%emt 0:00:10]} Kh7 {[%emt 0:00:09]} 72. Qe3 {[%emt 0:01:13] Prevents Qf3+.} Qd5 {[%emt 0:00:50]} 73. Kg3 {[%emt 0:00:21]} Qh1 {[%emt 0:00:31]} 74. h5 {[%emt 0:00:30]} Qd5 {[%emt 0:00:21]} 75. g5 {[%emt 0:00:52] Weighted Error Value: White=0.18 (very precise) /Black=0.24 (precise)} 1-0

[Event "Hungarian Youth-ch U16 2022"]
[Site "Eger"]
[Date "2022.07.26"]
[Round "4.5"]
[White "Buri, Petra Zsuzsanna"]
[Black "Bodo, Boglarka"]
[Result "1/2-1/2"]
[ECO "C10"]
[WhiteElo "1784"]
[BlackElo "1722"]
[Annotator "NA RC COMBH"]
[PlyCount "64"]
[EventDate "2022.07.21"]
[EventType "tourn"]
[EventCountry "HUN"]
[SourceTitle "playchess.com"]
[Source "ChessBase"]
[SourceQuality "1"]
[TimeControl "40/5400+30:1800+30"]

1. e4 {[%emt 0:01:01]} e6 {[%emt 0:01:44]} 2. d4 {[%emt 0:01:08]} d5 {[%emt 0:01:14]} 3. Nc3 {[%emt 0:03:21]} dxe4 {[%emt 0:01:15]} 4. Nxe4 {[%emt 0:00:21]} Nf6 {[%emt 0:01:52]} 5. Bg5 {[%emt 0:04:51]} Nbd7 {[%emt 0:01:51]} 6. Bd3 {[%emt 0:02:38]} Be7 {[%emt 0:03:11]} 7. Nxf6+ {[%emt 0:05:41]} Nxf6 {[%emt 0:01:10]} 8. Bxf6 {[%emt 0:01:30]} Bxf6 {[%emt 0:02:36]} 9. Nf3 {[%emt 0:04:06]} O-O {[%emt 0:01:56]} 10. O-O {[%emt 0:01:03]} b6 {[%emt 0:01:43]} 11. c3 {[%emt 0:00:57]} Bb7 {[%emt 0:01:19]} 12. Re1 {[%emt 0:06:01]} Bxf3 {[%emt 0:03:00]} 13. Qxf3 {[%emt 0:01:12]} Qd7 {[%emt 0:05:46]} 14. Rad1 {[%emt 0:05:50]} Rad8 {[%emt 0:05:07]} 15. Bc2 {[%emt 0:10:25]} Qd5 16. Qxd5 exd5 {[%emt 0:04:58]} 17. Re3 {[%emt 0:03:47]} Rfe8 18. Rde1 {[%emt 0:01:48]} Rxe3 {[%emt 0:02:22]} 19. Rxe3 {[%emt 0:01:40]} h6 {[%emt 0:02:01]} 20. Kf1 {[%emt 0:05:02]} Kf8 {[%emt 0:01:34]} 21. Ke2 {[%emt 0:02:41]} Re8 22. Kd3 {[%emt 0:04:17]} Bg5 {[%emt 0:01:58]} 23. Rxe8+ {[%emt 0:00:28]} Kxe8 24. c4 {[%emt 0:02:55]} dxc4+ {[%emt 0:01:15]} 25. Kxc4 {[%emt 0:00:06]} c6 {[%emt 0:01:23]} 26. a4 {[%emt 0:03:31]} a5 {[%emt 0:02:14]} 27. Be4 {[%emt 0:02:43]} Kd7 {[%emt 0:00:37]} 28. d5 {[%emt 0:02:41]} cxd5+ {[%emt 0:02:06]} 29. Bxd5 {[%emt 0:01:53]} f6 {[%emt 0:00:32]} 30. Kb5 {[%emt 0:00:15]} Kc7 {[%emt 0:00:28]} 31. b4 {[%emt 0:01:50]} Bd2 {[%emt 0:00:57]} 32. bxa5 {[%emt 0:00:57]} Bxa5 {[%emt 0:01:02]} 1/2-1/2

[Event "Hungarian Youth-ch U16 2022"]
[Site "Eger"]
[Date "2022.07.26"]
[Round "4.6"]
[White "Sipos, Stefania"]
[Black "Karacsonyi, Kata"]
[Result "0-1"]
[ECO "B52"]
[WhiteElo "1802"]
[BlackElo "2147"]
[Annotator "TA"]
[PlyCount "72"]
[EventDate "2022.07.21"]
[EventType "tourn"]
[EventCountry "HUN"]
[SourceTitle "playchess.com"]
[Source "ChessBase"]
[SourceQuality "1"]
[TimeControl "40/5400+30:1800+30"]

{[%evp 19,72,31,43,29,43,13,28,11,79,73,77,-79,-84,-76,-85,-76,-73,-95,-10,-15,-19,-18,-12,-6,-8,-61,-20,-171,-175,-174,-173,-221,-209,-225,-218,-211,-211,-266,-266,-279,-279,-279,-279,-279,-279,-380,-383,-374,-370,-331,-347,-406,-413,-496,-454]} 1. e4 {[%emt 0:00:32]} c5 {[%emt 0:00:37]} 2. Nf3 {[%emt 0:00:08]} d6 {[%emt 0:00:07]} 3. Bb5+ {[%emt 0:00:19]} Bd7 {[%emt 0:00:51]} 4. Bxd7+ {[%emt 0:00:12]} Qxd7 {[%emt 0:00:07]} 5. O-O {[%emt 0:00:19]} Nc6 {[%emt 0:01:50]} 6. c3 {[%emt 0:00:44][%cal Bc2c3,Bc3d4,Bd4d5][%mdl 32]} g6 {[%emt 0:01:45]} 7. d4 {[%emt 0:01:27]} cxd4 {[%emt 0:00:09]} 8. cxd4 {[%emt 0:00:08]} Bg7 {[%emt 0:00:21]} 9. Nc3 {[%emt 0:01:13]} Nf6 {[%emt 0:00:55]} 10. Re1 {[%emt 0:01:51]} O-O {[%emt 0:01:02]} 11. d5 {[%emt 0:07:44] B52: Sicilian: Moscow Variation with 3...Bd7.} Na5 {[%emt 0:13:16]} 12. Bg5 {[%emt 0:12:22] [#]} h6 $146 {[%emt 0:17:51]} ({Predecessor:} 12... Rfd8 13. e5 dxe5 14. Nxe5 Qf5 15. Bxf6 exf6 16. Nf3 Qd7 17. Qe2 Rac8 18. Rad1 Nc4 {½-½ (71) Mezcua Coronil,F (2230)-Marti Peiro,J Aragon 2003}) 13. Bh4 {[%emt 0:07:45] White has an edge.} Ng4 {[%emt 0:09:03]} (13... Rac8 $11) 14. Rc1 $16 {[%emt 0:21:37]} Rac8 {[%emt 0:02:37]} 15. Qa4 $2 {[%emt 0:10:32]} (15. Nd4 $16 {keeps the pressure on.}) 15... Qxa4 $17 {[%emt 0:03:30]} 16. Nxa4 {[%emt 0:00:09]} g5 {[%emt 0:00:40]} 17. Bg3 {[%emt 0:01:57]} Nc4 {[%emt 0:01:16]} 18. b3 {[%emt 0:04:58]} Nce5 {[%emt 0:02:06]} ({Better is} 18... Na3 $1 $17 {And now ...Nc2 would win.} 19. Rxc8 Rxc8) 19. Nxe5 $1 $11 {[%emt 0:02:07]} Nxe5 {[%emt 0:02:23]} 20. Nb2 {[%emt 0:02:08] [#] Against Nd3} Nf3+ $1 {[%emt 0:01:24]} 21. gxf3 {[%emt 0:02:02] aiming for Nc4.} Bxb2 {[%emt 0:00:10]} 22. Rc4 {[%emt 0:04:04]} (22. Rxc8 $11 Rxc8 23. f4) 22... b5 {[%emt 0:04:07]} 23. Rc6 {[%emt 0:03:37] Now White is beyond hope.} (23. Rxc8 $1 $11 {and White has nothing to worry.} Rxc8 24. Re2) 23... Rxc6 $1 $19 {[%emt 0:00:45]} 24. dxc6 {[%emt 0:00:06][%mdl 4096] Endgame [#] KRB-KRB} e5 $1 {[%emt 0:02:48]} 25. Re2 {[%emt 0:05:00] [#]} (25. c7 $142) 25... Ba3 $1 {[%emt 0:05:15]} 26. h4 {[%emt 0:01:35]} f6 {[%emt 0:04:02]} 27. Rc2 {[%emt 0:04:15]} Rc8 {[%emt 0:01:58]} 28. hxg5 {[%emt 0:01:13]} hxg5 {[%emt 0:00:09]} 29. Kg2 {[%emt 0:00:32]} Bc5 {[%emt 0:05:18]} 30. Kh3 {[%emt 0:01:32]} Kf7 {[%emt 0:02:01]} (30... Rxc6 31. b4 $11) 31. Kg4 {[%emt 0:01:41]} Kg6 {[%emt 0:01:32]} ({And not} 31... Rxc6 32. b4 $17) 32. b4 {[%emt 0:02:05]} Bxb4 {[%emt 0:00:46]} 33. Rb2 {[%emt 0:00:05]} ({Much worse is} 33. c7 Bc5 34. Kh3 Rxc7 $19) 33... Bc5 {[%emt 0:02:52]} 34. Rxb5 {[%emt 0:00:18]} Bb6 {[%emt 0:00:28]} ({Not} 34... Rxc6 $2 35. Rb2 $19) 35. a4 {[%emt 0:01:02]} Rxc6 {[%emt 0:00:37]} 36. a5 {[%emt 0:00:39]} Rc5 {[%emt 0:01:26] Weighted Error Value: White=0.38/Black=0.12 (very precise)} 0-1

[Event "Hungarian Youth-ch U16 2022"]
[Site "Eger"]
[Date "2022.07.26"]
[Round "4.7"]
[White "Harkai, Emma"]
[Black "Kovacs, Veronika"]
[Result "1/2-1/2"]
[ECO "B12"]
[WhiteElo "1761"]
[BlackElo "1633"]
[Annotator "NA RC COMBH"]
[PlyCount "69"]
[EventDate "2022.07.21"]
[EventType "tourn"]
[EventCountry "HUN"]
[SourceTitle "playchess.com"]
[Source "ChessBase"]
[SourceQuality "1"]
[TimeControl "40/5400+30:1800+30"]

1. e4 {[%emt 0:00:35]} c6 {[%emt 0:00:31]} 2. d4 {[%emt 0:00:13]} d5 {[%emt 0:00:02]} 3. f3 {[%emt 0:00:32]} g6 {[%emt 0:00:04]} 4. Nc3 {[%emt 0:03:43]} Qb6 {[%emt 0:00:03]} 5. exd5 {[%emt 0:11:49]} Bg7 {[%emt 0:00:10]} 6. Nge2 {[%emt 0:02:10]} Nd7 {[%emt 0:04:39]} 7. Rb1 {[%emt 0:11:23]} Ngf6 {[%emt 0:00:47]} 8. dxc6 {[%emt 0:03:15]} bxc6 {[%emt 0:02:28]} 9. Be3 {[%emt 0:02:09]} Ba6 {[%emt 0:01:18]} 10. Ng3 {[%emt 0:05:48]} Bxf1 {[%emt 0:09:23]} 11. Nxf1 {[%emt 0:04:31]} Nd5 {[%emt 0:00:58]} 12. Nxd5 {[%emt 0:04:19]} cxd5 {[%emt 0:00:06]} 13. c3 {[%emt 0:03:45]} O-O {[%emt 0:02:19]} 14. Qe2 {[%emt 0:02:10]} Qa5 {[%emt 0:02:53]} 15. a3 {[%emt 0:05:04]} Rab8 {[%emt 0:03:31]} 16. Nd2 {[%emt 0:10:05]} Qa4 {[%emt 0:17:58]} 17. O-O {[%emt 0:03:56]} Nb6 {[%emt 0:06:06]} 18. Rfc1 {[%emt 0:03:31]} Rfc8 {[%emt 0:03:14]} 19. Bg5 {[%emt 0:08:55]} e6 {[%emt 0:02:19]} 20. Be7 {[%emt 0:01:42]} Bf8 {[%emt 0:06:35]} 21. b3 {[%emt 0:01:16]} Qd7 {[%emt 0:22:19]} 22. Bxf8 {[%emt 0:01:24]} Kxf8 {[%emt 0:00:42]} 23. a4 {[%emt 0:01:00]} Rc7 {[%emt 0:02:34]} 24. a5 {[%emt 0:02:03]} Nc8 {[%emt 0:00:11]} 25. Qe3 {[%emt 0:00:51]} Nd6 {[%emt 0:01:04]} 26. Qd3 {[%emt 0:02:20]} Rbc8 {[%emt 0:01:01]} 27. c4 {[%emt 0:00:55]} Nf5 {[%emt 0:02:31]} 28. c5 {[%emt 0:01:53]} Rb7 {[%emt 0:01:28]} 29. a6 {[%emt 0:01:01]} Rbb8 {[%emt 0:00:35]} 30. Rc2 {[%emt 0:01:05]} Qb5 {[%emt 0:01:01]} 31. Rc3 {[%emt 0:01:50]} Qxd3 {[%emt 0:00:40]} 32. Rxd3 {[%emt 0:00:01]} Rb4 {[%emt 0:00:02]} 33. Rc3 {[%emt 0:00:29]} Nxd4 {[%emt 0:00:20]} 34. Kf2 {[%emt 0:00:08]} Ke7 {[%emt 0:01:13]} 35. g3 {[%emt 0:00:59]} 1/2-1/2